[Event "Titled Tuesday Blitz August 08 Late 2023"]
[White "Kostiukov, Alexandr"]
[Black "Yu, Jennifer"]
[WhiteFideId "14108100"]
[BlackFideId "2078341"]
[WhiteElo "2363"]
[BlackElo "2501"]
[Result "0-1"]
[Round "4"]
[TimeControl "180+1"]
[Date "2023.08.08"]
[WhiteClock "0:00:00"]
[BlackClock "0:00:07"]
[Board "121"]

1. g3 {[%clk 0:02:53]}  d5 {[%clk 0:03:00]} 2. Bg2 {[%clk 0:02:54]}  g6 {[%clk 0:03:00]} 3. d3 {[%clk 0:02:54]}  Bg7 {[%clk 0:03:01]} 4. e4 {[%clk 0:02:55]}  d4 {[%clk 0:02:59]} 5. f4 {[%clk 0:02:54]}  Nc6 {[%clk 0:02:58]} 6. Nf3 {[%clk 0:02:54]}  e5 {[%clk 0:02:54]} 7. O-O {[%clk 0:02:53]}  Nge7 {[%clk 0:02:51]} 8. a4 {[%clk 0:02:52]}  O-O {[%clk 0:02:51]} 9. Na3 {[%clk 0:02:52]}  f5 {[%clk 0:02:45]} 10. exf5 {[%clk 0:02:44]}  Bxf5 {[%clk 0:02:35]} 11. fxe5 {[%clk 0:02:41]}  Nxe5 {[%clk 0:02:13]} 12. Nxe5 {[%clk 0:02:39]}  Bxe5 {[%clk 0:02:14]} 13. Bxb7 {[%clk 0:02:34]}  Rb8 {[%clk 0:02:07]} 14. Bg2 {[%clk 0:02:33]}  Nd5 {[%clk 0:02:02]} 15. Nc4 {[%clk 0:02:31]}  Bg7 {[%clk 0:02:00]} 16. g4 {[%clk 0:02:07]}  Be6 {[%clk 0:01:55]} 17. Rxf8+ {[%clk 0:02:00]}  Qxf8 {[%clk 0:01:56]} 18. Qf3 {[%clk 0:01:47]}  Qe7 {[%clk 0:01:46]} 19. Bd2 {[%clk 0:01:38]}  Rf8 {[%clk 0:01:27]} 20. Qe4 {[%clk 0:01:37]}  Nf6 {[%clk 0:01:24]} 21. Qe2 {[%clk 0:01:26]}  Nxg4 {[%clk 0:00:45]} 22. Re1 {[%clk 0:01:19]}  Re8 {[%clk 0:00:18]} 23. Bd5 {[%clk 0:00:57]}  Ne3 {[%clk 0:00:16]} 24. Bxe6+ {[%clk 0:00:45]}  Qxe6 {[%clk 0:00:17]} 25. Nxe3 {[%clk 0:00:44]}  dxe3 {[%clk 0:00:12]} 26. Qxe3 {[%clk 0:00:28]}  Qxe3+ {[%clk 0:00:11]} 27. Bxe3 {[%clk 0:00:26]}  Bxb2 {[%clk 0:00:11]} 28. Kf2 {[%clk 0:00:24]}  Bc3 {[%clk 0:00:11]} 29. Rb1 {[%clk 0:00:22]}  a5 {[%clk 0:00:08]} 30. Rb7 {[%clk 0:00:18]}  Re7 {[%clk 0:00:08]} 31. d4 {[%clk 0:00:16]}  Rd7 {[%clk 0:00:08]} 32. Rb5 {[%clk 0:00:14]}  Kf7 {[%clk 0:00:08]} 33. d5 {[%clk 0:00:14]}  Kf6 {[%clk 0:00:08]} 34. Kf3 {[%clk 0:00:14]}  Ke5 {[%clk 0:00:08]} 35. Bf4+ {[%clk 0:00:14]}  Kf5 {[%clk 0:00:08]} 36. Rc5 {[%clk 0:00:14]}  Be5 {[%clk 0:00:08]} 37. Bd2 {[%clk 0:00:12]}  Bd6 {[%clk 0:00:08]} 38. Rxa5 {[%clk 0:00:12]}  Rf7 {[%clk 0:00:08]} 39. c4 {[%clk 0:00:09]}  Bxh2 {[%clk 0:00:08]} 40. Rc5 {[%clk 0:00:07]}  Ke5+ {[%clk 0:00:07]} 41. Ke3 {[%clk 0:00:07]}  Bg1+ {[%clk 0:00:06]} 42. Ke2 {[%clk 0:00:00]}  Bxc5 {[%clk 0:00:07]} 0-1


[Site "https://www.chess.com"]

[Event "Titled Tuesday Blitz August 08 Late 2023"]
[White "Michalczak, Thomas"]
[Black "Polaczek, Richard"]
[WhiteFideId "4622634"]
[BlackFideId "200026"]
[WhiteElo "2500"]
[BlackElo "2363"]
[Result "1/2-1/2"]
[Round "4"]
[TimeControl "180+1"]
[Date "2023.08.08"]
[WhiteClock "0:01:21"]
[BlackClock "0:01:45"]
[Board "122"]

1. e4 {[%clk 0:03:00]}  Nf6 {[%clk 0:02:48]} 2. e5 {[%clk 0:02:59]}  Nd5 {[%clk 0:02:46]} 3. d4 {[%clk 0:03:00]}  d6 {[%clk 0:02:46]} 4. Nf3 {[%clk 0:03:00]}  g6 {[%clk 0:02:46]} 5. Bc4 {[%clk 0:02:57]}  Nb6 {[%clk 0:02:46]} 6. Bb3 {[%clk 0:02:56]}  Bg7 {[%clk 0:02:46]} 7. a4 {[%clk 0:02:56]}  a5 {[%clk 0:02:45]} 8. Qe2 {[%clk 0:02:41]}  O-O {[%clk 0:02:43]} 9. h3 {[%clk 0:02:36]}  dxe5 {[%clk 0:02:41]} 10. dxe5 {[%clk 0:02:36]}  Na6 {[%clk 0:02:41]} 11. Be3 {[%clk 0:02:26]}  Nd5 {[%clk 0:02:40]} 12. Nc3 {[%clk 0:02:11]}  Nxe3 {[%clk 0:02:38]} 13. Qxe3 {[%clk 0:02:10]}  e6 {[%clk 0:02:37]} 14. Rd1 {[%clk 0:02:10]}  Qe7 {[%clk 0:02:36]} 15. Ne4 {[%clk 0:02:08]}  b6 {[%clk 0:02:34]} 16. O-O {[%clk 0:01:53]}  Bb7 {[%clk 0:02:30]} 17. Rfe1 {[%clk 0:01:50]}  Nc5 {[%clk 0:02:28]} 18. Nxc5 {[%clk 0:01:49]}  Qxc5 {[%clk 0:02:24]} 19. Qxc5 {[%clk 0:01:49]}  bxc5 {[%clk 0:02:24]} 20. Rd7 {[%clk 0:01:43]}  Bxf3 {[%clk 0:02:13]} 21. gxf3 {[%clk 0:01:42]}  Ra7 {[%clk 0:02:10]} 22. f4 {[%clk 0:01:34]}  Rb8 {[%clk 0:02:08]} 23. Red1 {[%clk 0:01:29]}  Bh6 {[%clk 0:01:49]} 24. Rd8+ {[%clk 0:01:29]}  Rxd8 {[%clk 0:01:48]} 25. Rxd8+ {[%clk 0:01:29]}  Kg7 {[%clk 0:01:48]} 26. Rd7 {[%clk 0:01:28]}  Kg8 {[%clk 0:01:46]} 27. Rd8+ {[%clk 0:01:20]}  Kg7 {[%clk 0:01:45]} 28. Rd7 {[%clk 0:01:21]}  Kg8 {[%clk 0:01:45]} 29. Rd8+ {[%clk 0:01:21]} 1/2-1/2


[Site "https://www.chess.com"]

[Event "Titled Tuesday Blitz August 08 Late 2023"]
[White "Pavlidou, Ekaterini"]
[Black "Remolar Gallen, Jose"]
[WhiteFideId "4213262"]
[BlackFideId "2215187"]
[WhiteElo "2357"]
[BlackElo "2495"]
[Result "0-1"]
[Round "4"]
[TimeControl "180+1"]
[Date "2023.08.08"]
[WhiteClock "0:01:05"]
[BlackClock "0:01:23"]
[Board "125"]

1. d4 {[%clk 0:02:56]}  Nf6 {[%clk 0:02:59]} 2. c4 {[%clk 0:02:56]}  g6 {[%clk 0:02:59]} 3. Nc3 {[%clk 0:02:56]}  d5 {[%clk 0:02:58]} 4. Bg5 {[%clk 0:02:54]}  Bg7 {[%clk 0:02:57]} 5. Nf3 {[%clk 0:02:53]}  O-O {[%clk 0:02:53]} 6. h4 {[%clk 0:02:53]}  c5 {[%clk 0:02:49]} 7. Bxf6 {[%clk 0:02:49]}  exf6 {[%clk 0:02:45]} 8. cxd5 {[%clk 0:02:47]}  f5 {[%clk 0:02:38]} 9. dxc5 {[%clk 0:02:45]}  Na6 {[%clk 0:02:38]} 10. h5 {[%clk 0:02:42]}  Nxc5 {[%clk 0:02:36]} 11. e3 {[%clk 0:02:36]}  Qb6 {[%clk 0:02:34]} 12. Qd2 {[%clk 0:02:22]}  f4 {[%clk 0:02:20]} 13. Ng5 {[%clk 0:02:19]}  fxe3 {[%clk 0:02:15]} 14. fxe3 {[%clk 0:02:19]}  Bf5 {[%clk 0:02:04]} 15. Be2 {[%clk 0:02:13]}  Rfe8 {[%clk 0:01:48]} 16. Kf2 {[%clk 0:01:52]}  h6 {[%clk 0:01:28]} 17. g4 {[%clk 0:01:47]}  hxg5 {[%clk 0:01:27]} 18. gxf5 {[%clk 0:01:47]}  Bxc3 {[%clk 0:01:27]} 19. Qc1 {[%clk 0:01:05]}  Ne4+ {[%clk 0:01:23]} 0-1


[Site "https://www.chess.com"]

[Event "Titled Tuesday Blitz August 08 Late 2023"]
[White "Mazibuko, Khanya"]
[Black "Yang, Kevin"]
[WhiteFideId "14321041"]
[BlackFideId "30908485"]
[WhiteElo "2343"]
[BlackElo "2493"]
[Result "0-1"]
[Round "4"]
[TimeControl "180+1"]
[Date "2023.08.08"]
[WhiteClock "0:00:05"]
[BlackClock "0:00:06"]
[Board "127"]

1. e4 {[%clk 0:03:00]}  e6 {[%clk 0:02:58]} 2. d4 {[%clk 0:02:53]}  a6 {[%clk 0:02:58]} 3. f4 {[%clk 0:02:51]}  d5 {[%clk 0:02:58]} 4. e5 {[%clk 0:02:50]}  h5 {[%clk 0:02:57]} 5. Nf3 {[%clk 0:02:43]}  c5 {[%clk 0:02:54]} 6. c3 {[%clk 0:02:42]}  Nc6 {[%clk 0:02:54]} 7. Be3 {[%clk 0:02:39]}  Qb6 {[%clk 0:02:35]} 8. Qb3 {[%clk 0:02:38]}  Qxb3 {[%clk 0:02:30]} 9. axb3 {[%clk 0:02:39]}  cxd4 {[%clk 0:02:28]} 10. Nxd4 {[%clk 0:02:35]}  Nge7 {[%clk 0:02:27]} 11. Nb5 {[%clk 0:02:25]}  Kd7 {[%clk 0:02:24]} 12. Nd6 {[%clk 0:02:21]}  f6 {[%clk 0:02:18]} 13. Nxc8 {[%clk 0:02:06]}  Rxc8 {[%clk 0:02:15]} 14. exf6 {[%clk 0:02:05]}  gxf6 {[%clk 0:02:16]} 15. b4 {[%clk 0:01:59]}  d4 {[%clk 0:02:12]} 16. Bf2 {[%clk 0:01:48]}  Nd5 {[%clk 0:02:09]} 17. b5 {[%clk 0:01:43]}  axb5 {[%clk 0:02:05]} 18. Bxb5 {[%clk 0:01:43]}  dxc3 {[%clk 0:02:04]} 19. Nxc3 {[%clk 0:01:39]}  Bb4 {[%clk 0:02:01]} 20. O-O {[%clk 0:01:37]}  Bxc3 {[%clk 0:01:51]} 21. bxc3 {[%clk 0:01:33]}  Nxc3 {[%clk 0:01:52]} 22. Bd3 {[%clk 0:01:11]}  Ra8 {[%clk 0:01:24]} 23. Bg6 {[%clk 0:00:59]}  Ne2+ {[%clk 0:01:05]} 24. Kh1 {[%clk 0:00:57]}  Rxa1 {[%clk 0:01:05]} 25. Rxa1 {[%clk 0:00:56]}  Nxf4 {[%clk 0:01:06]} 26. Rd1+ {[%clk 0:00:49]}  Kc8 {[%clk 0:00:57]} 27. Be4 {[%clk 0:00:44]}  Rd8 {[%clk 0:00:46]} 28. Ra1 {[%clk 0:00:44]}  f5 {[%clk 0:00:36]} 29. Bb6 {[%clk 0:00:45]}  Rd6 {[%clk 0:00:19]} 30. Bf3 {[%clk 0:00:41]}  e5 {[%clk 0:00:19]} 31. g3 {[%clk 0:00:38]}  e4 {[%clk 0:00:18]} 32. Bd1 {[%clk 0:00:32]}  Nd5 {[%clk 0:00:15]} 33. Bc5 {[%clk 0:00:24]}  Rh6 {[%clk 0:00:16]} 34. Bf8 {[%clk 0:00:19]}  Rh7 {[%clk 0:00:14]} 35. Bd6 {[%clk 0:00:20]}  Kd7 {[%clk 0:00:14]} 36. Bc5 {[%clk 0:00:17]}  Ke6 {[%clk 0:00:14]} 37. Rb1 {[%clk 0:00:16]}  Nc3 {[%clk 0:00:12]} 38. Bb3+ {[%clk 0:00:14]}  Ke5 {[%clk 0:00:12]} 39. Rc1 {[%clk 0:00:11]}  Ne2 {[%clk 0:00:13]} 40. Rd1 {[%clk 0:00:09]}  Ned4 {[%clk 0:00:11]} 41. Ba4 {[%clk 0:00:07]}  h4 {[%clk 0:00:10]} 42. Kg2 {[%clk 0:00:08]}  hxg3 {[%clk 0:00:10]} 43. hxg3 {[%clk 0:00:08]}  Rg7 {[%clk 0:00:10]} 44. Bxc6 {[%clk 0:00:07]}  Nxc6 {[%clk 0:00:10]} 45. Bd6+ {[%clk 0:00:05]}  Ke6 {[%clk 0:00:10]} 46. Bf4 {[%clk 0:00:06]}  Rd7 {[%clk 0:00:11]} 47. Rb1 {[%clk 0:00:06]}  Nd4 {[%clk 0:00:10]} 48. Rb6+ {[%clk 0:00:06]}  Nc6 {[%clk 0:00:10]} 49. Rb5 {[%clk 0:00:06]}  Kf6 {[%clk 0:00:09]} 50. Rb1 {[%clk 0:00:04]}  Kg6 {[%clk 0:00:09]} 51. Rh1 {[%clk 0:00:03]}  Nd4 {[%clk 0:00:08]} 52. Rh6+ {[%clk 0:00:03]}  Kg7 {[%clk 0:00:09]} 53. Rb6 {[%clk 0:00:02]}  Kf7 {[%clk 0:00:09]} 54. Be5 {[%clk 0:00:02]}  Ne6 {[%clk 0:00:10]} 55. Kh3 {[%clk 0:00:01]}  Rd5 {[%clk 0:00:09]} 56. Bf4 {[%clk 0:00:01]}  Nxf4+ {[%clk 0:00:08]} 57. gxf4 {[%clk 0:00:02]}  Rd3+ {[%clk 0:00:08]} 58. Kh4 {[%clk 0:00:01]}  e3 {[%clk 0:00:08]} 59. Kg5 {[%clk 0:00:02]}  e2 {[%clk 0:00:08]} 60. Rxb7+ {[%clk 0:00:03]}  Ke8 {[%clk 0:00:08]} 61. Rb6 {[%clk 0:00:03]}  Re3 {[%clk 0:00:07]} 62. Rf6 {[%clk 0:00:04]}  e1=Q {[%clk 0:00:06]} 63. Rxf5 {[%clk 0:00:05]}  Kd7 {[%clk 0:00:07]} 64. Rf6 {[%clk 0:00:05]}  Qg3+ {[%clk 0:00:07]} 65. Kf5 {[%clk 0:00:05]}  Qh3+ {[%clk 0:00:06]} 66. Kg6 {[%clk 0:00:04]}  Rg3+ {[%clk 0:00:06]} 67. Kf7 {[%clk 0:00:04]}  Qh7+ {[%clk 0:00:06]} 68. Kf8 {[%clk 0:00:05]}  Rg8# {[%clk 0:00:06]} 0-1


[Site "https://www.chess.com"]

[Event "Titled Tuesday Blitz August 08 Late 2023"]
[White "ciroreva-CB"]
[Black "Womacka, Mathias"]
[BlackFideId "4611390"]
[WhiteElo "2335"]
[BlackElo "2492"]
[Result "1-0"]
[Round "4"]
[TimeControl "180+1"]
[Date "2023.08.08"]
[WhiteClock "0:01:48"]
[BlackClock "0:00:28"]
[Board "128"]

1. e4 {[%clk 0:03:00]}  c5 {[%clk 0:02:55]} 2. Nf3 {[%clk 0:03:00]}  d6 {[%clk 0:02:54]} 3. c3 {[%clk 0:03:00]}  Nf6 {[%clk 0:02:54]} 4. h3 {[%clk 0:03:00]}  g6 {[%clk 0:02:46]} 5. Bd3 {[%clk 0:03:00]}  Bg7 {[%clk 0:02:46]} 6. O-O {[%clk 0:02:58]}  O-O {[%clk 0:02:46]} 7. Bc2 {[%clk 0:02:58]}  e5 {[%clk 0:02:45]} 8. d4 {[%clk 0:02:58]}  exd4 {[%clk 0:02:39]} 9. cxd4 {[%clk 0:02:59]}  Nc6 {[%clk 0:02:34]} 10. Nc3 {[%clk 0:02:59]}  cxd4 {[%clk 0:02:25]} 11. Nxd4 {[%clk 0:03:00]}  Nxe4 {[%clk 0:02:25]} 12. Nxc6 {[%clk 0:03:00]}  Nxc3 {[%clk 0:02:24]} 13. Nxd8 {[%clk 0:03:00]}  Nxd1 {[%clk 0:02:24]} 14. Nxf7 {[%clk 0:02:59]}  Nxb2 {[%clk 0:02:12]} 15. Nxd6 {[%clk 0:02:59]}  Be6 {[%clk 0:01:56]} 16. Rb1 {[%clk 0:02:45]}  Nc4 {[%clk 0:01:46]} 17. Bb3 {[%clk 0:02:44]}  Nxd6 {[%clk 0:01:20]} 18. Bxe6+ {[%clk 0:02:43]}  Kh8 {[%clk 0:01:20]} 19. Ba3 {[%clk 0:02:43]}  Rfd8 {[%clk 0:01:10]} 20. Rfd1 {[%clk 0:02:33]}  Ne4 {[%clk 0:00:58]} 21. Rxd8+ {[%clk 0:02:29]}  Rxd8 {[%clk 0:00:59]} 22. Rxb7 {[%clk 0:02:29]}  Bd4 {[%clk 0:00:57]} 23. Bb2 {[%clk 0:02:22]}  Nc5 {[%clk 0:00:41]} 24. Rb8 {[%clk 0:02:07]}  Nxe6 {[%clk 0:00:37]} 25. Rxd8+ {[%clk 0:02:07]}  Nxd8 {[%clk 0:00:37]} 26. Bxd4+ {[%clk 0:02:07]}  Kg8 {[%clk 0:00:37]} 27. Bxa7 {[%clk 0:02:07]}  Kf7 {[%clk 0:00:37]} 28. Kf1 {[%clk 0:02:06]}  Ke6 {[%clk 0:00:37]} 29. Ke2 {[%clk 0:02:07]}  Kd5 {[%clk 0:00:38]} 30. Kd3 {[%clk 0:02:06]}  Nc6 {[%clk 0:00:37]} 31. Be3 {[%clk 0:02:00]}  Nb4+ {[%clk 0:00:37]} 32. Kc3 {[%clk 0:01:56]}  Nxa2+ {[%clk 0:00:34]} 33. Kb3 {[%clk 0:01:56]}  Ke4 {[%clk 0:00:32]} 34. Kxa2 {[%clk 0:01:55]}  Kd3 {[%clk 0:00:32]} 35. Kb3 {[%clk 0:01:54]}  Ke2 {[%clk 0:00:32]} 36. g4 {[%clk 0:01:55]}  Kf3 {[%clk 0:00:32]} 37. Kc4 {[%clk 0:01:52]}  h5 {[%clk 0:00:31]} 38. gxh5 {[%clk 0:01:49]}  gxh5 {[%clk 0:00:32]} 39. h4 {[%clk 0:01:48]}  Kg4 {[%clk 0:00:31]} 40. Bg5 {[%clk 0:01:48]}  Kf3 {[%clk 0:00:31]} 41. Kd5 {[%clk 0:01:47]}  Kxf2 {[%clk 0:00:31]} 42. Ke6 {[%clk 0:01:47]}  Kf3 {[%clk 0:00:32]} 43. Kf6 {[%clk 0:01:48]}  Kg4 {[%clk 0:00:28]} 44. Kg6 {[%clk 0:01:48]} 1-0


[Site "https://www.chess.com"]

[Event "Titled Tuesday Blitz August 08 Late 2023"]
[White "Vasques, Antonio Pedro Freixial"]
[Black "Hansen, Torbjorn Ringdal"]
[WhiteFideId "1908332"]
[BlackFideId "1501720"]
[WhiteElo "2335"]
[BlackElo "2492"]
[Result "0-1"]
[Round "4"]
[TimeControl "180+1"]
[Date "2023.08.08"]
[WhiteClock "0:00:17"]
[BlackClock "0:01:18"]
[Board "129"]

1. e4 {[%clk 0:01:29]}  c5 {[%clk 0:02:58]} 2. Nc3 {[%clk 0:01:27]}  e6 {[%clk 0:02:52]} 3. Nf3 {[%clk 0:01:26]}  Nc6 {[%clk 0:02:46]} 4. d4 {[%clk 0:01:26]}  cxd4 {[%clk 0:02:38]} 5. Nxd4 {[%clk 0:01:27]}  Nf6 {[%clk 0:02:38]} 6. Ndb5 {[%clk 0:01:26]}  d6 {[%clk 0:02:34]} 7. Bf4 {[%clk 0:01:26]}  e5 {[%clk 0:02:33]} 8. Bg5 {[%clk 0:01:26]}  a6 {[%clk 0:02:33]} 9. Na3 {[%clk 0:01:25]}  b5 {[%clk 0:02:31]} 10. Nd5 {[%clk 0:01:26]}  Be7 {[%clk 0:02:30]} 11. Bxf6 {[%clk 0:01:26]}  Bxf6 {[%clk 0:02:29]} 12. c4 {[%clk 0:01:27]}  b4 {[%clk 0:02:25]} 13. Nc2 {[%clk 0:01:27]}  O-O {[%clk 0:02:25]} 14. b3 {[%clk 0:01:25]}  Be6 {[%clk 0:02:09]} 15. h4 {[%clk 0:01:25]}  Bxd5 {[%clk 0:01:57]} 16. Qxd5 {[%clk 0:01:23]}  Nd4 {[%clk 0:01:54]} 17. Nxd4 {[%clk 0:01:15]}  exd4 {[%clk 0:01:53]} 18. g3 {[%clk 0:01:11]}  Re8 {[%clk 0:01:50]} 19. f4 {[%clk 0:01:07]}  Rc8 {[%clk 0:01:47]} 20. Bd3 {[%clk 0:01:06]}  Rc5 {[%clk 0:01:44]} 21. Qb7 {[%clk 0:01:06]}  Re7 {[%clk 0:01:37]} 22. Qxa6 {[%clk 0:01:06]}  Qb8 {[%clk 0:01:34]} 23. e5 {[%clk 0:00:18]}  dxe5 {[%clk 0:01:18]} 24. fxe5 {[%clk 0:00:17]} 0-1


[Site "https://www.chess.com"]

[Event "Titled Tuesday Blitz August 08 Late 2023"]
[White "Sebag, Marie"]
[Black "crosky"]
[WhiteFideId "617822"]
[WhiteElo "2490"]
[BlackElo "2330"]
[Result "1-0"]
[Round "4"]
[TimeControl "180+1"]
[Date "2023.08.08"]
[WhiteClock "0:00:37"]
[BlackClock "0:00:31"]
[Board "130"]

1. d4 {[%clk 0:02:59]}  Nf6 {[%clk 0:02:59]} 2. c4 {[%clk 0:02:59]}  e6 {[%clk 0:02:59]} 3. Nc3 {[%clk 0:02:59]}  Bb4 {[%clk 0:03:00]} 4. e3 {[%clk 0:02:58]}  O-O {[%clk 0:03:00]} 5. Bd3 {[%clk 0:02:55]}  d5 {[%clk 0:03:00]} 6. Ne2 {[%clk 0:02:55]}  dxc4 {[%clk 0:02:51]} 7. Bxc4 {[%clk 0:02:54]}  c5 {[%clk 0:02:52]} 8. O-O {[%clk 0:02:54]}  cxd4 {[%clk 0:02:49]} 9. exd4 {[%clk 0:02:54]}  Nbd7 {[%clk 0:02:39]} 10. Bg5 {[%clk 0:02:52]}  Be7 {[%clk 0:02:37]} 11. Rc1 {[%clk 0:02:51]}  Nb6 {[%clk 0:02:37]} 12. Bb3 {[%clk 0:02:50]}  Bd7 {[%clk 0:02:38]} 13. Qd3 {[%clk 0:02:42]}  Bc6 {[%clk 0:02:26]} 14. Bc2 {[%clk 0:02:40]}  g6 {[%clk 0:02:26]} 15. Rfe1 {[%clk 0:02:36]}  Nfd5 {[%clk 0:02:24]} 16. Bh6 {[%clk 0:02:34]}  Re8 {[%clk 0:02:20]} 17. Ng3 {[%clk 0:02:34]}  Nxc3 {[%clk 0:02:16]} 18. bxc3 {[%clk 0:02:33]}  Qd5 {[%clk 0:02:03]} 19. f3 {[%clk 0:02:02]}  Bb5 {[%clk 0:01:56]} 20. Qe3 {[%clk 0:01:55]}  Nc4 {[%clk 0:01:50]} 21. Qf4 {[%clk 0:01:55]}  Rac8 {[%clk 0:01:31]} 22. Ne4 {[%clk 0:01:53]}  f5 {[%clk 0:01:19]} 23. Ng5 {[%clk 0:01:51]}  Bd6 {[%clk 0:01:11]} 24. Qh4 {[%clk 0:01:49]}  Rc7 {[%clk 0:01:08]} 25. Bb3 {[%clk 0:01:40]}  a5 {[%clk 0:01:03]} 26. a4 {[%clk 0:01:38]}  Bd7 {[%clk 0:01:00]} 27. Bg7 {[%clk 0:01:22]}  h5 {[%clk 0:00:57]} 28. Bh6 {[%clk 0:00:51]}  Bf8 {[%clk 0:00:55]} 29. Bxf8 {[%clk 0:00:43]}  Rxf8 {[%clk 0:00:55]} 30. Nh3 {[%clk 0:00:39]}  Kg7 {[%clk 0:00:37]} 31. Nf4 {[%clk 0:00:38]}  Qd6 {[%clk 0:00:34]} 32. Qg5 {[%clk 0:00:38]}  Rf6 {[%clk 0:00:31]} 33. Nxh5+ {[%clk 0:00:37]} 1-0


[Site "https://www.chess.com"]

[Event "Titled Tuesday Blitz August 08 Late 2023"]
[White "Shapiro, Daniel"]
[Black "Reprintsev, Alexander"]
[WhiteFideId "2001780"]
[BlackFideId "14100541"]
[WhiteElo "2329"]
[BlackElo "2490"]
[Result "0-1"]
[Round "4"]
[TimeControl "180+1"]
[Date "2023.08.08"]
[WhiteClock "0:00:00"]
[BlackClock "0:00:06"]
[Board "131"]

1. d4 {[%clk 0:03:00]}  d5 {[%clk 0:00:16]} 2. Nf3 {[%clk 0:02:59]}  Nc6 {[%clk 0:00:15]} 3. Bf4 {[%clk 0:02:54]}  Bg4 {[%clk 0:00:14]} 4. Nbd2 {[%clk 0:02:53]}  e6 {[%clk 0:00:14]} 5. e3 {[%clk 0:02:53]}  Bd6 {[%clk 0:00:14]} 6. c3 {[%clk 0:02:48]}  Nf6 {[%clk 0:00:14]} 7. h3 {[%clk 0:02:47]}  Bxf4 {[%clk 0:00:13]} 8. hxg4 {[%clk 0:02:29]}  Bd6 {[%clk 0:00:12]} 9. g5 {[%clk 0:02:30]}  Ne4 {[%clk 0:00:12]} 10. Nxe4 {[%clk 0:02:24]}  dxe4 {[%clk 0:00:12]} 11. Nd2 {[%clk 0:02:25]}  Qxg5 {[%clk 0:00:12]} 12. Nxe4 {[%clk 0:02:25]}  Qe7 {[%clk 0:00:11]} 13. Bb5 {[%clk 0:02:14]}  f5 {[%clk 0:00:10]} 14. Nd2 {[%clk 0:02:03]}  O-O {[%clk 0:00:09]} 15. Qh5 {[%clk 0:01:36]}  h6 {[%clk 0:00:09]} 16. O-O-O {[%clk 0:01:36]}  Nd8 {[%clk 0:00:07]} 17. f4 {[%clk 0:01:25]}  Nf7 {[%clk 0:00:07]} 18. Nf3 {[%clk 0:01:23]}  c6 {[%clk 0:00:06]} 19. Bc4 {[%clk 0:01:18]}  b5 {[%clk 0:00:06]} 20. Bb3 {[%clk 0:01:19]}  a5 {[%clk 0:00:06]} 21. Ne5 {[%clk 0:01:11]}  Bxe5 {[%clk 0:00:06]} 22. dxe5 {[%clk 0:01:06]}  a4 {[%clk 0:00:07]} 23. Bc2 {[%clk 0:01:06]}  b4 {[%clk 0:00:07]} 24. Rd3 {[%clk 0:00:54]}  b3 {[%clk 0:00:06]} 25. Bb1 {[%clk 0:00:54]}  bxa2 {[%clk 0:00:06]} 26. Bxa2 {[%clk 0:00:54]}  a3 {[%clk 0:00:07]} 27. b4 {[%clk 0:00:43]}  c5 {[%clk 0:00:07]} 28. b5 {[%clk 0:00:39]}  c4 {[%clk 0:00:07]} 29. Bxc4 {[%clk 0:00:38]}  Rfc8 {[%clk 0:00:07]} 30. Ba2 {[%clk 0:00:37]}  Qb4 {[%clk 0:00:06]} 31. Qe2 {[%clk 0:00:32]}  Rxc3+ {[%clk 0:00:06]} 32. Rxc3 {[%clk 0:00:29]}  Qxc3+ {[%clk 0:00:06]} 33. Kb1 {[%clk 0:00:28]}  Rb8 {[%clk 0:00:06]} 34. Rc1 {[%clk 0:00:24]}  Qb4+ {[%clk 0:00:06]} 35. Ka1 {[%clk 0:00:21]}  Rxb5 {[%clk 0:00:07]} 36. g4 {[%clk 0:00:00]}  Qb2+ {[%clk 0:00:06]} 0-1


[Site "https://www.chess.com"]

[Event "Titled Tuesday Blitz August 08 Late 2023"]
[White "Gaal, Zsoka"]
[Black "Manon-og, Ramon Jr."]
[WhiteFideId "777765"]
[BlackFideId "5200776"]
[WhiteElo "2476"]
[BlackElo "2322"]
[Result "1-0"]
[Round "4"]
[TimeControl "180+1"]
[Date "2023.08.08"]
[WhiteClock "0:00:05"]
[BlackClock "0:00:14"]
[Board "135"]

1. Nf3 {[%clk 0:03:00]}  Nf6 {[%clk 0:02:59]} 2. g3 {[%clk 0:02:58]}  g6 {[%clk 0:03:00]} 3. b3 {[%clk 0:02:58]}  d5 {[%clk 0:03:00]} 4. Bb2 {[%clk 0:02:58]}  Bg7 {[%clk 0:03:01]} 5. Bg2 {[%clk 0:02:59]}  O-O {[%clk 0:03:01]} 6. c4 {[%clk 0:02:59]}  c6 {[%clk 0:03:00]} 7. O-O {[%clk 0:02:59]}  Bf5 {[%clk 0:02:49]} 8. d3 {[%clk 0:02:58]}  Nbd7 {[%clk 0:02:47]} 9. Nbd2 {[%clk 0:02:58]}  Re8 {[%clk 0:02:45]} 10. Nh4 {[%clk 0:02:54]}  Bg4 {[%clk 0:02:44]} 11. h3 {[%clk 0:02:50]}  Be6 {[%clk 0:02:44]} 12. f4 {[%clk 0:02:38]}  Qb6+ {[%clk 0:02:36]} 13. Kh2 {[%clk 0:02:37]}  Ng4+ {[%clk 0:02:33]} 14. hxg4 {[%clk 0:02:34]}  Bxb2 {[%clk 0:02:33]} 15. Rb1 {[%clk 0:02:31]}  Bf6 {[%clk 0:02:22]} 16. f5 {[%clk 0:02:26]}  Ne5 {[%clk 0:02:20]} 17. fxe6 {[%clk 0:02:01]}  Nxg4+ {[%clk 0:02:17]} 18. Kh3 {[%clk 0:01:57]}  Qd4 {[%clk 0:01:32]} 19. exf7+ {[%clk 0:01:39]}  Kxf7 {[%clk 0:01:31]} 20. Nhf3 {[%clk 0:01:00]}  Qe3 {[%clk 0:01:03]} 21. cxd5 {[%clk 0:00:38]}  cxd5 {[%clk 0:00:52]} 22. Kxg4 {[%clk 0:00:32]}  Qe6+ {[%clk 0:00:49]} 23. Kf4 {[%clk 0:00:33]}  Kg7 {[%clk 0:00:41]} 24. g4 {[%clk 0:00:32]}  Be5+ {[%clk 0:00:30]} 25. Nxe5 {[%clk 0:00:26]}  Rf8+ {[%clk 0:00:30]} 26. Kg3 {[%clk 0:00:27]}  Qxe5+ {[%clk 0:00:31]} 27. Kh3 {[%clk 0:00:27]}  Qe3+ {[%clk 0:00:28]} 28. Rf3 {[%clk 0:00:22]}  Qh6+ {[%clk 0:00:24]} 29. Kg3 {[%clk 0:00:22]}  g5 {[%clk 0:00:24]} 30. Qh1 {[%clk 0:00:21]}  Qd6+ {[%clk 0:00:17]} 31. Kf2 {[%clk 0:00:22]}  e5 {[%clk 0:00:16]} 32. Qh5 {[%clk 0:00:12]}  h6 {[%clk 0:00:15]} 33. Rc1 {[%clk 0:00:10]}  e4 {[%clk 0:00:15]} 34. Rxf8 {[%clk 0:00:06]}  Rxf8+ {[%clk 0:00:14]} 35. Kg1 {[%clk 0:00:07]}  e3 {[%clk 0:00:14]} 36. Nf3 {[%clk 0:00:06]}  Qa3 {[%clk 0:00:14]} 37. Rc7+ {[%clk 0:00:05]}  Kf6 {[%clk 0:00:14]} 38. Qxh6# {[%clk 0:00:05]} 1-0


[Site "https://www.chess.com"]